fUSD/lending_fUSD_20250610
["ID","MTS","AMOUNT","RATE_DAILY","PERIOD"]
[365297606,1749585393948,470.0,0.00016602,2]
[365297607,1749585397391,190.22406757,0.00016438,2]
[365297608,1749585398749,480.0,0.00016438,2]
[365297609,1749585404846,480.0,0.00016438,2]
[365297610,1749585407243,490.0,0.00016438,2]
[365297611,1749585407486,490.0,0.00016602,2]
[365297612,1749585407736,490.0,0.00016767,2]
[365297613,1749585408069,394.81,0.00016931,2]
[365297614,1749585413549,480.0,0.00016438,2]
[365297615,1749585414357,239.68347874,0.00016438,2]
[365297616,1749585415879,480.0,0.00016438,2]
[365297617,1749585422846,480.0,0.00016438,2]
[365297618,1749585427847,490.0,0.00016438,2]
[365297619,1749585428090,470.0,0.00016602,2]
[365297620,1749585430335,397.450152,0.00016438,2]
[365297621,1749585432115,480.0,0.00016438,2]
[365297622,1749585434594,480.0,0.00016438,2]
[365297623,1749585435026,489.75,0.00016438,2]
[365297624,1749585436553,1264.03,0.00016438,2]
[365297625,1749585436811,1264.03,0.00016602,2]
[365297626,1749585437145,1264.03,0.00016767,2]
[365297627,1749585437385,480.0,0.00016438,2]
[365297628,1749585437416,1264.03,0.00016931,2]
[365297629,1749585437674,1264.03,0.00017095,2]
[365297630,1749585437940,1264.03,0.0001726,2]
[365297631,1749585438200,1264.03,0.00017424,2]
[365297632,1749585439649,490.0,0.00016438,2]
[365297633,1749585439903,470.0,0.00016602,2]
[365297634,1749585440490,165.73,0.00019205,30]
[365297635,1749585441068,490.0,0.00016438,2]
[365297636,1749585441328,490.0,0.00016602,2]
[365297637,1749585441563,490.0,0.00016767,2]
[365297638,1749585441869,480.0,0.00016438,2]
[365297639,1749585442177,314.18449376,0.00016931,2]
[365297640,1749585445387,480.0,0.00016438,2]
[365297641,1749585454277,117101.53416454,0.00016438,2]
[365297642,1749585454308,101021.11043911,0.00016438,2]
[365297643,1749585457176,480.0,0.00016438,2]
[365297644,1749585462285,490.0,0.00016438,2]
[365297645,1749585462555,470.0,0.00016602,2]
[365297646,1749585467405,490.0,0.00016438,2]
[365297647,1749585472236,490.0,0.00016438,2]
[365297648,1749585472478,490.0,0.00016602,2]
[365297649,1749585472730,490.0,0.00016767,2]
[365297650,1749585472974,490.0,0.00016931,2]
[365297651,1749585473213,407.83,0.00017095,2]
[365297652,1749585477684,539.13371772,0.00016438,2]
[365297653,1749585483232,490.0,0.00016438,2]
[365297654,1749585483496,156.3680293,0.00016602,2]
[365297655,1749585485494,490.0,0.00016438,2]
[365297656,1749585485735,470.0,0.00016602,2]
[365297657,1749585488206,480.0,0.00016438,2]
[365297658,1749585489006,480.0,0.00016438,2]
[365297659,1749585490387,480.0,0.00016438,2]
[365297660,1749585498540,490.0,0.00016438,2]
[365297661,1749585498584,490.0,0.00016602,2]
[365297662,1749585498838,490.0,0.00016767,2]
[365297663,1749585499087,490.0,0.00016931,2]
[365297664,1749585499357,490.0,0.00017095,2]
[365297665,1749585499603,490.0,0.0001726,2]
[365297666,1749585499855,490.0,0.00017424,2]
[365297667,1749585502185,490.0,0.00016438,2]
[365297668,1749585502437,490.0,0.00016602,2]
[365297669,1749585502687,490.0,0.00016767,2]
[365297670,1749585502931,490.0,0.00016931,2]
[365297671,1749585512980,490.0,0.00016438,2]
[365297672,1749585513830,490.0,0.00016602,2]
[365297673,1749585513913,505.36,0.00016767,2]
[365297674,1749585535865,507.93,0.00016438,2]
[365297676,1749585616196,591.46,0.00015844,2]
[365297679,1749585742211,2001.39419921,0.0002,30]
[365297680,1749585887895,2005.16,0.0003851,50]
[365297681,1749585951134,-340.507204,0.00016083,2]
[365297682,1749585951156,-461.52509598,0.00016164,2]
[365297683,1749585951185,-165.44051501,0.00016164,2]
[365297685,1749586025124,-334.55948499,0.00016164,2]
[365297686,1749586025147,-1200.0,0.00016436,2]
[365297687,1749586025169,-300.0,0.00016437,2]
[365297688,1749586025191,-300.0,0.00016437,2]
[365297689,1749586025214,-480.0,0.00016438,2]
[365297690,1749586025236,-295.96854293,0.00016438,2]
[365297691,1749586025258,-427.32901779,0.00016438,2]
[365297692,1749586025282,-480.0,0.00016438,2]
[365297693,1749586025304,-485.35884164,0.00016438,2]
[365297694,1749586025332,-481.27115681,0.00016438,2]
[365297695,1749586025362,-480.0,0.00016438,2]
[365297696,1749586025390,-460.0,0.00016438,2]
[365297697,1749586025415,-480.18,0.00016438,2]
[365297698,1749586025440,-460.0,0.00016438,2]
[365297699,1749586025469,-487.60707069,0.00016438,2]
[365297700,1749586025495,-552.81,0.00016438,2]
[365297701,1749586025526,-263.46501789,0.00016438,2]
[365297702,1749586025554,-490.90748903,0.00016438,2]
[365297703,1749586025579,-480.0,0.00016438,2]
[365297704,1749586025603,-480.0,0.00016438,2]
[365297705,1749586025625,-480.0,0.00016438,2]
[365297706,1749586025650,-360.0,0.00016438,2]
[365297707,1749586025679,-296.46328971,0.00016438,2]
[365297708,1749586025705,-480.0,0.00016438,2]
[365297709,1749586025732,-480.0,0.00016438,2]
[365297710,1749586025757,-480.0,0.00016438,2]
[365297711,1749586025784,-480.0,0.00016438,2]
[365297712,1749586025812,-480.0,0.00016438,2]
[365297713,1749586025840,-480.0,0.00016438,2]
[365297714,1749586025866,-480.0,0.00016438,2]
[365297715,1749586025893,-480.0,0.00016438,2]
[365297716,1749586025919,-509.35292162,0.00016438,2]
[365297717,1749586025944,-480.0,0.00016438,2]
[365297718,1749586025974,-480.0,0.00016438,2]
[365297719,1749586026001,-480.0,0.00016438,2]
[365297720,1749586026028,-490.0,0.00016438,2]
[365297721,1749586026055,-480.0,0.00016438,2]
[365297722,1749586026083,-490.04764733,0.00016438,2]
[365297723,1749586026110,-480.0,0.00016438,2]
[365297724,1749586026137,-480.0,0.00016438,2]
[365297725,1749586026161,-490.0,0.00016438,2]
[365297726,1749586026184,-125.95887933,0.00016438,2]
[365297727,1749586027189,-173.36246494,0.00016438,2]
[365297728,1749586028782,5000.0,0.0003851,50]
[365297729,1749586043098,-187.15806513,0.00016438,2]
[365297730,1749586043120,-480.0,0.00016438,2]
[365297731,1749586043141,-602.56,0.00016438,2]
[365297732,1749586043162,-480.0,0.00016438,2]
[365297733,1749586043184,-485.64,0.00016438,2]
[365297734,1749586043204,-501.72034018,0.00016438,2]
[365297735,1749586043225,-482.3172234,0.00016438,2]
[365297736,1749586043247,-480.0,0.00016438,2]
[365297737,1749586043271,-83.65872201,0.00016438,2]
[365297738,1749586043300,-396.34127799,0.00016438,2]
[365297739,1749586043322,-112.29069598,0.00016438,2]
[365297740,1749586054097,-164.83746523,0.00016438,2]
[365297741,1749586069092,500.0,0.0003851,50]
[365297745,1749586103657,207.66,0.00013699,2]
[365297747,1749586149945,1500.0,0.00038513,50]
[365297748,1749586172117,-500.0,0.00016164,2]
[365297752,1749586230842,626.34,0.00038513,50]
[365297755,1749586231844,-580.54091556,0.00016437,2]
[365297756,1749586231901,-619.45908444,0.00016437,2]
[365297757,1749586231910,-105.39929127,0.00016438,2]
[365297758,1749586231921,-97.47254752,0.00016438,2]
[365297759,1749586231931,-480.0,0.00016438,2]
[365297760,1749586231940,-517.39657714,0.00016438,2]
[365297761,1749586231950,-498.7575944,0.00016438,2]
[365297762,1749586231960,-448.39088964,0.00016438,2]
[365297763,1749586231969,-502.70876024,0.00016438,2]
[365297764,1749586231979,-490.0,0.00016438,2]
[365297765,1749586231989,-480.0,0.00016438,2]
[365297766,1749586231999,-480.0,0.00016438,2]
[365297767,1749586232007,-480.0,0.00016438,2]
[365297768,1749586232017,-323.77363106,0.00016438,2]
[365297769,1749586232030,-166.22636894,0.00016438,2]
[365297770,1749586232040,-244.87917741,0.00016438,2]
[365297771,1749586232052,-245.12082259,0.00016438,2]
[365297772,1749586232061,-300.91939178,0.00016438,2]
[365297773,1749586232072,-189.08060822,0.00016438,2]
[365297774,1749586232081,-490.0,0.00016438,2]
[365297775,1749586232090,-490.0,0.00016438,2]
[365297776,1749586232099,-490.0,0.00016438,2]
[365297777,1749586232108,-490.0,0.00016438,2]
[365297778,1749586232118,-490.0,0.00016438,2]
[365297779,1749586232127,-490.0,0.00016438,2]
[365297780,1749586232136,-490.0,0.00016438,2]
[365297781,1749586232146,-490.0,0.00016438,2]
[365297782,1749586232156,-480.0,0.00016438,2]
[365297783,1749586232166,-480.0,0.00016438,2]
[365297784,1749586232176,-300.00175378,0.00016438,2]
[365297785,1749586232185,-268.68934991,0.00016438,2]
[365297786,1749586232195,-490.7003371,0.00016438,2]
[365297787,1749586232204,-490.0,0.00016438,2]
[365297788,1749586232213,-490.0,0.00016438,2]
[365297789,1749586232222,-490.0,0.00016438,2]
[365297790,1749586232231,-490.0,0.00016438,2]
[365297792,1749586232241,-490.0,0.00016438,2]
[365297794,1749586232250,-490.0,0.00016438,2]
[365297796,1749586232259,-490.0,0.00016438,2]
[365297798,1749586232269,-490.0,0.00016438,2]
[365297800,1749586232278,-490.0,0.00016438,2]
[365297801,1749586232287,-490.0,0.00016438,2]
[365297802,1749586232297,-490.0,0.00016438,2]
[365297803,1749586232306,-410.41196086,0.00016438,2]
[365297804,1749586232315,-490.0,0.00016438,2]
[365297805,1749586232325,-490.0,0.00016438,2]
[365297806,1749586232334,-480.0,0.00016438,2]
[365297808,1749586232344,-480.0,0.00016438,2]
[365297810,1749586232354,-490.0,0.00016438,2]
[365297812,1749586232363,-480.0,0.00016438,2]
[365297814,1749586232372,-480.0,0.00016438,2]
[365297816,1749586232383,-490.0,0.00016438,2]
[365297818,1749586232396,-480.0,0.00016438,2]
[365297820,1749586232406,-557.06358838,0.00016438,2]
[365297822,1749586232415,-284.0,0.00016438,2]
[365297824,1749586232424,-490.0,0.00016438,2]
[365297826,1749586232434,-164.58,0.00016438,2]
[365297828,1749586232443,-191.85,0.00016438,2]
[365297830,1749586232452,-480.0,0.00016438,2]
[365297832,1749586232461,-2576.39,0.00016438,2]
[365297834,1749586232471,-490.0,0.00016438,2]
[365297836,1749586232480,-480.0,0.00016438,2]
[365297838,1749586232489,-490.0,0.00016438,2]
[365297840,1749586232499,-490.0,0.00016438,2]
[365297842,1749586232508,-490.0,0.00016438,2]
[365297844,1749586232517,-490.0,0.00016438,2]
[365297846,1749586232526,-490.0,0.00016438,2]
[365297848,1749586232535,-490.0,0.00016438,2]
[365297850,1749586232545,-490.0,0.00016438,2]
[365297852,1749586232554,-496.36283732,0.00016438,2]
[365297854,1749586232563,-490.0,0.00016438,2]
[365297856,1749586232572,-490.0,0.00016438,2]
[365297858,1749586232584,-490.0,0.00016438,2]
[365297860,1749586232593,-490.0,0.00016438,2]
[365297862,1749586232602,-480.0,0.00016438,2]
[365297864,1749586232611,-490.0,0.00016602,2]
[365297866,1749586232622,-490.0,0.00016602,2]
[365297868,1749586232631,-490.0,0.00016602,2]
[365297870,1749586232642,-490.0,0.00016602,2]
[365297872,1749586232651,-470.0,0.00016602,2]
[365297874,1749586232661,-490.0,0.00016602,2]
[365297876,1749586232670,-490.0,0.00016602,2]
[365297878,1749586232679,-490.0,0.00016602,2]
[365297880,1749586232688,-490.0,0.00016602,2]
[365297882,1749586232698,-490.0,0.00016602,2]
[365297884,1749586232707,-490.0,0.00016602,2]
[365297886,1749586232716,-182.45,0.00016602,2]
[365297888,1749586232725,-490.0,0.00016602,2]
[365297890,1749586232734,-490.0,0.00016602,2]
[365297892,1749586232743,-490.0,0.00016602,2]
[365297894,1749586232752,-550.28,0.00016602,2]
[365297896,1749586232762,-490.0,0.00016602,2]
[365297898,1749586232771,-490.0,0.00016602,2]
[365297900,1749586232779,-490.0,0.00016602,2]
[365297902,1749586232788,-490.0,0.00016602,2]
[365297904,1749586232798,-193.79,0.00016602,2]
[365297906,1749586232808,-490.0,0.00016602,2]
[365297908,1749586232817,-2576.39,0.00016602,2]
[365297910,1749586232826,-490.0,0.00016602,2]
[365297912,1749586232835,-490.0,0.00016602,2]
[365297914,1749586232844,-490.0,0.00016602,2]
[365297916,1749586232854,-490.0,0.00016602,2]
[365297918,1749586232863,-490.0,0.00016602,2]
[365297920,1749586232872,-490.0,0.00016602,2]
[365297922,1749586232883,-490.0,0.00016602,2]
[365297924,1749586232892,-490.0,0.00016602,2]
[365297926,1749586232901,-490.0,0.00016602,2]
[365297928,1749586232910,-490.0,0.00016602,2]
[365297930,1749586232919,-490.0,0.00016602,2]
[365297932,1749586232928,-490.0,0.00016767,2]
[365297934,1749586232937,-490.0,0.00016767,2]
[365297936,1749586232946,-490.0,0.00016767,2]
[365297938,1749586232955,-490.0,0.00016767,2]
[365297940,1749586232964,-490.0,0.00016767,2]
[365297942,1749586232974,-490.0,0.00016767,2]
[365297944,1749586232983,-490.0,0.00016767,2]
[365297946,1749586232994,-490.0,0.00016767,2]
[365297948,1749586233003,-490.0,0.00016767,2]
[365297950,1749586233012,-490.0,0.00016767,2]
[365297952,1749586233022,-407.66751638,0.00016767,2]
[365297954,1749586233032,-490.0,0.00016767,2]
[365297956,1749586233043,-490.0,0.00016767,2]
[365297958,1749586233053,-250.4,0.00016767,2]
[365297960,1749586233066,-490.0,0.00016767,2]
[365297962,1749586233075,-595.78392617,0.00016767,2]
[365297964,1749586233085,-490.0,0.00016767,2]
[365297966,1749586233094,-490.0,0.00016767,2]
[365297968,1749586233104,-2576.39,0.00016767,2]
[365297970,1749586233113,-490.0,0.00016767,2]
[365297971,1749586233123,-393.46035351,0.00016767,2]
[365297974,1749586233136,-96.53964649,0.00016767,2]
[365297976,1749586233147,-490.0,0.00016767,2]
[365297978,1749586233157,-490.0,0.00016767,2]
[365297980,1749586233166,-490.0,0.00016767,2]
[365297982,1749586233176,-490.0,0.00016767,2]
[365297984,1749586233185,-490.0,0.00016767,2]
[365297986,1749586233195,-490.0,0.00016767,2]
[365297988,1749586233205,-490.0,0.00016767,2]
[365297990,1749586233214,-490.0,0.00016767,2]
[365297992,1749586233224,-490.0,0.00016767,2]
[365297994,1749586233233,-490.56,0.00016931,2]
[365297996,1749586233243,-285.12606391,0.00016931,2]
[365297998,1749586233253,-490.0,0.00016931,2]
[365298000,1749586233262,-490.0,0.00016931,2]
[365298002,1749586233271,-573.47964936,0.00016931,2]
[365298004,1749586233281,-490.0,0.00016931,2]
[365298006,1749586233290,-158.94767551,0.00016931,2]
[365298008,1749586233299,-286.5466526,0.00016931,2]
[365298010,1749586233309,-490.0,0.00016931,2]
[365298012,1749586233319,-490.0,0.00016931,2]
[365298014,1749586233328,-510.52,0.00016931,2]
[365298016,1749586233337,-490.0,0.00016931,2]
[365298018,1749586233347,-490.0,0.00016931,2]
[365298020,1749586233356,-2576.39,0.00016931,2]
[365298022,1749586233366,-490.0,0.00016931,2]
[365298024,1749586233375,-490.0,0.00016931,2]
[365298026,1749586233385,-490.0,0.00016931,2]
[365298028,1749586233396,-90.13196213,0.00016931,2]
[365298030,1749586233408,-409.42803787,0.00016931,2]
[365298032,1749586233417,-490.0,0.00016931,2]
[365298034,1749586233427,-490.0,0.00016931,2]
[365298036,1749586233437,-106.0935549,0.00016931,2]
[365298038,1749586233448,-383.9064451,0.00016931,2]
[365298040,1749586233458,-253.86253206,0.00016931,2]
[365298042,1749586233470,-236.13746794,0.00016931,2]
[365298044,1749586233479,-401.04651504,0.00016931,2]
[365298046,1749586233488,-490.0,0.00017095,2]
[365298048,1749586233498,-490.0,0.00017095,2]
[365298050,1749586233508,-490.0,0.00017095,2]
[365298052,1749586233517,-452.41601704,0.00017095,2]
[365298055,1749586233530,-37.58398296,0.00017095,2]
[365298057,1749586233540,-490.0,0.00017095,2]
[365298059,1749586233549,-2576.39,0.00017095,2]
[365298061,1749586233559,-490.0,0.00017095,2]
[365298063,1749586233569,-537.79641558,0.00017095,2]
[365298065,1749586233582,-214.76,0.00017095,2]
[365298067,1749586233591,-490.0,0.00017095,2]
[365298069,1749586233600,-490.0,0.00017095,2]
[365298071,1749586233610,-268.72829026,0.00017095,2]
[365298073,1749586233623,-221.27170974,0.00017095,2]
[365298075,1749586233632,-200.0,0.0001712,2]
[365298077,1749586233642,-217.89071254,0.0001712,2]
[365298080,1749586233657,-78.10928746,0.0001712,2]
[365298082,1749586233667,-490.0,0.0001726,2]
[365298084,1749586233676,-490.0,0.0001726,2]
[365298085,1749586233685,-280.05154896,0.0001726,2]
[365298088,1749586233697,-209.94845104,0.0001726,2]
[365298090,1749586233707,-490.0,0.0001726,2]
[365298092,1749586233717,-490.0,0.0001726,2]
[365298094,1749586233726,-22.22914504,0.0001726,2]
[365298096,1749586233738,-2554.16085496,0.0001726,2]
[365298098,1749586233747,-490.0,0.0001726,2]
[365298100,1749586233757,-405.76,0.0001726,2]
[365298102,1749586233766,-161.16,0.0001726,2]
[365298104,1749586233776,-490.0,0.0001726,2]
[365298106,1749586233785,-150.0,0.00017307,7]
[365298108,1749586233795,-250.0,0.00017327,2]
[365298110,1749586233805,-644.99131571,0.00017339,2]
[365298112,1749586233817,-1312.86468429,0.00017339,2]
[365298114,1749586233827,-207.4,0.00017339,2]
[365298116,1749586233836,-500.0,0.00017339,2]
[365298118,1749586233845,-500.0,0.00017339,2]
[365298120,1749586233854,-367.97428001,0.00017339,2]
[365298122,1749586233863,-151.0,0.00017339,2]
[365298124,1749586233872,-490.0,0.00017424,2]
[365298126,1749586233881,-490.0,0.00017424,2]
[365298128,1749586233891,-168.13821115,0.00017424,2]
[365298131,1749586233903,-321.86178885,0.00017424,2]
[365298133,1749586233913,-225.39674817,0.00017424,2]
[365298135,1749586233925,-264.60325183,0.00017424,2]
[365298137,1749586233934,-2576.39,0.00017424,2]
[365298139,1749586233943,-291.02001558,0.00017424,2]
[365298141,1749586233955,-198.97998442,0.00017424,2]
[365298143,1749586233964,-341.5513171,0.00017424,2]
[365298145,1749586233976,-148.4486829,0.00017424,2]
[365298147,1749586233985,-666.0,0.00017435,2]
[365298149,1749586233995,-833.29909032,0.00017581,2]
[365298151,1749586234005,-500.0,0.00017588,2]
[365298153,1749586234014,-430.87681237,0.00017588,2]
[365298155,1749586234023,-490.0,0.00017589,2]
[365298157,1749586234033,-490.0,0.00017589,2]
[365298159,1749586234042,-490.0,0.00017589,2]
[365298161,1749586234053,-2576.39,0.00017589,2]
[365298163,1749586234062,-490.0,0.00017589,2]
[365298165,1749586234071,-200.0,0.00017677,2]
[365298167,1749586234080,-294.04505111,0.00017753,2]
[365298169,1749586234089,-490.0,0.00017753,2]
[365298170,1749586234098,-490.0,0.00017753,2]
[365298171,1749586234108,-2576.39,0.00017753,2]
[365298172,1749586234116,-250.0,0.0001778,2]
[365298173,1749586234124,-250.0,0.0001778,2]
[365298174,1749586234132,-207.32534187,0.000179,2]
[365298175,1749586234141,-490.0,0.00017917,2]
[365298176,1749586234150,-490.0,0.00017917,2]
[365298177,1749586234159,-2576.39,0.00017917,2]
[365298178,1749586234168,-420.0,0.00017963,2]
[365298179,1749586234178,-207.32534181,0.00017969,2]
[365298180,1749586234187,-207.32534181,0.00018038,2]
[365298182,1749586234197,-1680.0,0.00018053,2]
[365298184,1749586234206,-600.0,0.00018082,4]
[365298186,1749586234216,-300.0,0.00018082,2]
[365298188,1749586234226,-490.0,0.00018082,2]
[365298190,1749586234236,-490.0,0.00018082,2]
[365298192,1749586234246,-2576.39,0.00018082,2]
[365298194,1749586234255,-207.32534181,0.00018107,2]
[365298196,1749586234265,-591.46,0.00018108,2]
[365298198,1749586234275,-207.32534181,0.00018176,2]
[365298200,1749586234285,-200.0,0.00018233,3]
[365298202,1749586234294,-207.32534181,0.00018245,2]
[365298204,1749586234304,-490.0,0.00018246,2]
[365298206,1749586234313,-490.0,0.00018246,2]
[365298208,1749586234323,-2576.39,0.00018246,2]
[365298210,1749586234332,-500.0,0.00018286,2]
[365298212,1749586234341,-207.32534181,0.00018314,2]
[365298214,1749586234350,-207.32534181,0.00018383,2]
[365298216,1749586234359,-1000.0,0.00018393,2]
[365298218,1749586234369,-490.0,0.0001841,2]
[365298220,1749586234379,-490.0,0.0001841,2]
[365298222,1749586234388,-2576.39,0.0001841,2]
[365298224,1749586234398,-206.03,0.00018434,2]
[365298226,1749586234407,-207.32534181,0.00018452,2]
[365298228,1749586234416,-200.0,0.00018467,2]
[365298230,1749586234425,-207.32534181,0.00018521,2]
[365298232,1749586234435,-996.996,0.00018538,2]
[365298234,1749586234444,-490.0,0.00018575,2]
[365298236,1749586234453,-490.0,0.00018575,2]
[365298238,1749586234463,-2576.39,0.00018575,2]
[365298239,1749586234472,-207.32534181,0.0001859,2]
[365298241,1749586234481,-3836.37887325,0.00018628,2]
[365298244,1749586234490,-207.32534181,0.00018659,2]
[365298246,1749586234500,-6531.77,0.00018704,2]
[365298247,1749586234510,-215.0738,0.00018708,2]
[365298250,1749586234519,-156.587,0.00018708,2]
[365298252,1749586234529,-207.32534181,0.00018728,2]
[365298254,1749586234539,-490.0,0.00018739,2]
[365298256,1749586234548,-490.0,0.00018739,2]
[365298257,1749586234557,-2576.39,0.00018739,2]
[365298259,1749586234566,-3836.3788732,0.00018758,2]
[365298261,1749586234576,-945.0,0.00018783,2]
[365298263,1749586234589,-802.0,0.00018783,2]
[365298266,1749586234598,-637.0,0.00018783,2]
[365298268,1749586234607,-876.99,0.00018783,2]
[365298270,1749586234617,-927.0,0.00018783,2]
[365298272,1749586234626,-558.0,0.00018783,2]
[365298274,1749586234636,-2001.0,0.00018783,2]
[365298276,1749586234646,-1159.0,0.00018783,2]
[365298278,1749586234658,-200.0,0.0001879,4]
[365298280,1749586234667,-207.32534181,0.00018797,2]
[365298282,1749586234676,-1000.0,0.00018811,2]
[365298284,1749586234686,-4085.0,0.00018842,2]
[365298286,1749586234695,-155.0,0.00018842,2]
[365298288,1749586234704,-7064.0,0.00018842,2]
[365298290,1749586234714,-207.32534181,0.00018866,2]
[365298292,1749586234724,-3836.3788732,0.00018888,2]
[365298294,1749586234734,-221.34,0.000189,2]
[365298296,1749586234744,-2336.1548,0.000189,2]
[365298298,1749586234753,-157.04546289,0.00018904,2]
[365298300,1749586234762,-505.1293477,0.00018904,2]
[365298302,1749586234772,-490.0,0.00018904,2]
[365298304,1749586234781,-2576.39,0.00018904,2]
[365298306,1749586234791,-500.0,0.00018904,2]
[365298308,1749586234801,-150.0,0.00018911,2]
[365298310,1749586234811,-150.0,0.00018911,2]
[365298312,1749586234820,-150.0,0.00018911,2]
[365298314,1749586234830,-150.0,0.00018911,2]
[365298316,1749586234839,-3330.0,0.00018911,2]
[365298318,1749586234848,-207.32534181,0.00018934,2]
[365298320,1749586234858,-500.0,0.00018999,2]
[365298322,1749586234868,-500.0,0.00018999,2]
[365298324,1749586234877,-29657.54109294,0.00019,2]
[365298645,1749586237903,-490.0,0.00016438,2]
[365298647,1749586237913,-446.133403,0.00018842,2]
[365298649,1749586237925,-406.866597,0.00018842,2]
[365298651,1749586237935,-1048.27812021,0.00019,2]
[365298655,1749586237956,-78676.76435733,0.00019,2]
[365298657,1749586237965,-207.32534181,0.00019003,2]
[365298659,1749586237975,-3836.3788732,0.00019019,2]
[365298661,1749586237984,-157.04546287,0.0001905,2]
[365298663,1749586237993,-490.0,0.00019068,2]
[365298665,1749586238002,-2576.39,0.00019068,2]
[365298667,1749586238011,-207.32534181,0.00019072,2]
[365298669,1749586238020,-207.32534181,0.00019141,2]
[365298671,1749586238029,-24711.1809,0.00019142,2]
[365298673,1749586238039,-3836.3788732,0.00019149,2]
[365298675,1749586238048,-500.0,0.00019178,2]
[365298677,1749586238058,-500.0,0.00019178,2]
[365298679,1749586238067,-464.70482483,0.00019178,2]
[365298681,1749586238076,-1.97881212,0.00019178,2]
[365298683,1749586238091,-149.02118788,0.00019178,2]
[365298686,1749586238100,-172.84,0.00019178,2]
[365298688,1749586238110,-113.82053069,0.00019195,2]
[365298690,1749586238122,-43.22493218,0.00019195,2]
[365298692,1749586238130,-207.32534181,0.0001921,2]
[365298694,1749586238140,-490.0,0.00019232,2]
[365298696,1749586238149,-2576.39,0.00019232,2]
[365298698,1749586238158,-3836.3788732,0.00019279,2]
[365298700,1749586238167,-207.32534181,0.00019279,2]
[365298702,1749586238176,-1118.38950612,0.00019297,2]
[365298704,1749586238185,-157.04546287,0.00019341,2]
[365298706,1749586238194,-200.0,0.00019347,5]
[365298708,1749586238203,-207.32534181,0.00019348,2]
[365298710,1749586238212,-1118.38950608,0.00019353,2]
[365298712,1749586238222,-490.0,0.00019397,2]
[365298714,1749586238231,-2576.39,0.00019397,2]
[365298716,1749586238240,-1118.38950608,0.00019409,2]
[365298718,1749586238249,-3836.3788732,0.00019409,2]
[365298720,1749586238259,-207.32534181,0.00019417,2]
[365298721,1749586238267,-500.0,0.00019452,2]
[365298722,1749586238276,-1118.38950608,0.00019465,2]
[365298723,1749586238285,-992.739857,0.00019481,2]
[365298724,1749586238294,-207.32534181,0.00019486,2]
[365298725,1749586238303,-157.04546287,0.00019487,2]
[365298726,1749586238311,-1118.38950608,0.00019521,2]
[365298727,1749586238320,-3836.3788732,0.0001954,2]
[365298728,1749586238329,-207.32534181,0.00019555,2]
[365298729,1749586238338,-207.73,0.00019561,2]
[365298730,1749586238347,-2576.39,0.00019561,2]
[365298733,1749586238356,-1118.38950608,0.00019576,2]
[365298736,1749586238366,-207.32534181,0.00019624,2]
[365298738,1749586238375,-157.04546287,0.00019632,2]
[365298741,1749586238384,-1000.0,0.00019651,2]
[365298744,1749586238395,-1000.0,0.00019658,2]
[365298746,1749586238404,-3836.3788732,0.0001967,2]
[365298749,1749586238413,-1000.0,0.00019685,2]